fUSD/lending_fUSD_20260424
["ID","MTS","AMOUNT","RATE_DAILY","PERIOD"]
[421083929,1777003846826,-500.0,8.599e-05,2]
[421083930,1777003846835,-3938.61427506,8.6e-05,2]
[421083931,1777003846852,-777.54,8.6e-05,2]
[421083932,1777004055824,-260.0,8.492e-05,2]
[421083933,1777004055847,-151.0,8.492e-05,2]
[421083934,1777004055873,-29589.0,8.495e-05,2]
[421083935,1777004077595,-600.0,8.495e-05,2]
[421083936,1777004348233,161.36989152,8e-05,3]
[421083957,1777005031516,-99.22589602,7.735e-05,2]
[421083958,1777005031527,-52.03410398,7.735e-05,2]
[421083959,1777005031536,-197.0,7.735e-05,2]
[421083960,1777005031546,-570.06,7.741e-05,2]
[421083961,1777005031555,-1200.0,7.815e-05,2]
[421083962,1777005031565,-150.0,7.816e-05,2]
[421083963,1777005031574,-150.0,7.816e-05,2]
[421083964,1777005031583,-150.0,7.816e-05,2]
[421083965,1777005031592,-150.0,7.816e-05,2]
[421083966,1777005031601,-150.00000001,7.816e-05,2]
[421083967,1777005031610,-150.0,7.816e-05,2]
[421083968,1777005031619,-150.0,7.816e-05,2]
[421083969,1777005031629,-150.0,7.816e-05,2]
[421083970,1777005031638,-150.0,7.816e-05,2]
[421083971,1777005031647,-150.0,7.849e-05,2]
[421083972,1777005031656,-150.0,7.881e-05,2]
[421083973,1777005031666,-150.0,7.913e-05,2]
[421083974,1777005031675,-150.0,7.945e-05,2]
[421083975,1777005031684,-150.0,7.977e-05,2]
[421083976,1777005031693,-150.0,7.99e-05,2]
[421083977,1777005032038,-150.0,8.009e-05,2]
[421083978,1777005032049,-150.0,8.042e-05,2]
[421083979,1777005032059,-150.0,8.074e-05,2]
[421083980,1777005032069,-150.0,8.106e-05,2]
[421083981,1777005032078,-150.0,8.106e-05,2]
[421083982,1777005032088,-150.0,8.106e-05,2]
[421083983,1777005032098,-150.0,8.138e-05,2]
[421083984,1777005032109,-150.0,8.164e-05,2]
[421083985,1777005032119,-150.0,8.17e-05,2]
[421083986,1777005032128,-150.0,8.202e-05,2]
[421083987,1777005032137,-150.0,8.235e-05,2]
[421083988,1777005032147,-150.0,8.251e-05,2]
[421083989,1777005032157,-150.0,8.251e-05,2]
[421083990,1777005032166,-150.0,8.251e-05,2]
[421083991,1777005032176,-150.0,8.267e-05,2]
[421083992,1777005032185,-500.0,8.288e-05,2]
[421083993,1777005032195,-500.0,8.288e-05,2]
[421083994,1777005032204,-500.0,8.288e-05,2]
[421083995,1777005032215,-500.0,8.288e-05,2]
[421083996,1777005032225,-537.88183946,8.288e-05,2]
[421083997,1777005032235,-150.0,8.288e-05,2]
[421083998,1777005032244,-150.0,8.288e-05,2]
[421083999,1777005032254,-150.0,8.288e-05,2]
[421084000,1777005032264,-210.68312372,8.288e-05,2]
[421084001,1777005032276,-150.0,8.294e-05,2]
[421084002,1777005032288,-46164.7178,8.295e-05,2]
[421084003,1777005032297,-150.0,8.299e-05,2]
[421084004,1777005032307,-150.0,8.331e-05,2]
[421084005,1777005032318,-150.0,8.338e-05,2]
[421084006,1777005032327,-150.0,8.363e-05,2]
[421084007,1777005032337,-224.07,8.379e-05,2]
[421084008,1777005032346,-721.12765535,8.39e-05,2]
[421084009,1777005032357,-200.0,8.39e-05,2]
[421084010,1777005032368,-1428.38747117,8.39e-05,2]
[421084011,1777005032379,-743.50770149,8.39e-05,2]
[421084012,1777005032390,-151.0,8.39e-05,2]
[421084013,1777005032401,-174.61919141,8.39e-05,2]
[421084014,1777005032410,-279.9045709,8.39e-05,2]
[421084015,1777005032420,-209.40437684,8.39e-05,2]
[421084016,1777005032430,-151.0,8.39e-05,2]
[421084017,1777005032439,-578.20924308,8.393e-05,2]
[421084018,1777005032448,-500.0,8.394e-05,2]
[421084019,1777005032457,-844.53,8.394e-05,2]
[421084020,1777005032466,-500.0,8.394e-05,2]
[421084021,1777005032475,-500.0,8.394e-05,2]
[421084022,1777005032484,-500.0,8.394e-05,2]
[421084023,1777005032494,-500.0,8.394e-05,2]
[421084024,1777005032504,-500.0,8.394e-05,2]
[421084025,1777005032513,-500.0,8.394e-05,2]
[421084026,1777005032522,-500.0,8.394e-05,2]
[421084027,1777005032532,-500.0,8.394e-05,2]
[421084028,1777005032541,-500.0,8.394e-05,2]
[421084029,1777005032550,-500.0,8.394e-05,2]
[421084030,1777005032559,-500.0,8.394e-05,2]
[421084031,1777005032568,-500.0,8.394e-05,2]
[421084032,1777005032578,-500.0,8.394e-05,2]
[421084033,1777005032587,-500.0,8.394e-05,2]
[421084034,1777005032596,-500.0,8.394e-05,2]
[421084035,1777005032606,-500.0,8.394e-05,2]
[421084036,1777005032615,-500.0,8.394e-05,2]
[421084037,1777005032625,-500.0,8.394e-05,2]
[421084038,1777005032635,-500.0,8.394e-05,2]
[421084039,1777005032645,-500.0,8.394e-05,2]
[421084040,1777005032655,-500.0,8.394e-05,2]
[421084041,1777005032664,-500.0,8.394e-05,2]
[421084042,1777005032674,-500.0,8.394e-05,2]
[421084043,1777005032683,-500.0,8.394e-05,2]
[421084044,1777005032693,-500.0,8.394e-05,2]
[421084045,1777005032702,-500.0,8.394e-05,2]
[421084046,1777005032712,-500.0,8.394e-05,2]
[421084047,1777005032723,-500.0,8.394e-05,2]
[421084048,1777005032732,-500.0,8.394e-05,2]
[421084049,1777005032744,-500.0,8.394e-05,2]
[421084050,1777005032753,-500.0,8.394e-05,2]
[421084051,1777005032764,-500.0,8.394e-05,2]
[421084052,1777005032775,-500.0,8.394e-05,2]
[421084053,1777005032785,-500.0,8.394e-05,2]
[421084054,1777005032796,-500.0,8.394e-05,2]
[421084055,1777005032806,-500.0,8.394e-05,2]
[421084056,1777005032815,-500.0,8.394e-05,2]
[421084057,1777005032824,-500.0,8.394e-05,2]
[421084058,1777005032833,-500.0,8.394e-05,2]
[421084059,1777005032843,-500.0,8.394e-05,2]
[421084060,1777005032853,-500.0,8.394e-05,2]
[421084061,1777005032863,-500.0,8.394e-05,2]
[421084062,1777005032874,-500.0,8.394e-05,2]
[421084063,1777005032884,-500.0,8.394e-05,2]
[421084064,1777005032894,-500.0,8.394e-05,2]
[421084065,1777005032903,-447.73586014,8.394e-05,2]
[421084066,1777005032913,-295.64674932,8.394e-05,2]
[421084067,1777005032922,-500.0,8.394e-05,2]
[421084068,1777005032932,-500.0,8.394e-05,2]
[421084069,1777005032942,-500.0,8.394e-05,2]
[421084070,1777005032952,-500.0,8.394e-05,2]
[421084071,1777005032961,-500.0,8.394e-05,2]
[421084072,1777005032970,-500.0,8.394e-05,2]
[421084073,1777005032981,-500.0,8.394e-05,2]
[421084074,1777005032991,-500.0,8.394e-05,2]
[421084075,1777005032999,-500.0,8.394e-05,2]
[421084076,1777005033011,-500.0,8.394e-05,2]
[421084077,1777005033021,-500.0,8.394e-05,2]
[421084078,1777005033031,-500.0,8.394e-05,2]
[421084079,1777005033041,-500.0,8.394e-05,2]
[421084080,1777005033051,-500.0,8.394e-05,2]
[421084081,1777005033060,-500.0,8.394e-05,2]
[421084082,1777005033071,-500.0,8.394e-05,2]
[421084083,1777005033080,-500.0,8.394e-05,2]
[421084084,1777005033090,-500.0,8.394e-05,2]
[421084085,1777005033100,-500.0,8.394e-05,2]
[421084086,1777005033109,-500.0,8.394e-05,2]
[421084087,1777005033119,-500.0,8.394e-05,2]
[421084088,1777005033128,-500.0,8.394e-05,2]
[421084089,1777005033137,-500.0,8.394e-05,2]
[421084090,1777005033146,-500.0,8.394e-05,2]
[421084091,1777005033155,-446.19118139,8.394e-05,2]
[421084092,1777005033166,-391.17663502,8.394e-05,2]
[421084093,1777005033175,-500.0,8.394e-05,2]
[421084094,1777005033184,-500.0,8.394e-05,2]
[421084095,1777005033193,-500.0,8.394e-05,2]
[421084096,1777005033202,-500.0,8.394e-05,2]
[421084097,1777005033212,-500.0,8.394e-05,2]
[421084098,1777005033222,-500.0,8.394e-05,2]
[421084099,1777005033231,-500.0,8.394e-05,2]
[421084100,1777005033240,-500.0,8.394e-05,2]
[421084101,1777005033251,-500.0,8.394e-05,2]
[421084102,1777005033260,-500.0,8.394e-05,2]
[421084103,1777005033269,-500.0,8.394e-05,2]
[421084104,1777005033278,-350.0,8.394e-05,2]
[421084105,1777005033288,-165.88745658,8.394e-05,2]
[421084106,1777005033297,-500.0,8.394e-05,2]
[421084107,1777005033306,-500.0,8.394e-05,2]
[421084108,1777005033315,-413.30190198,8.394e-05,2]
[421084109,1777005033324,-500.0,8.394e-05,2]
[421084110,1777005033334,-500.0,8.394e-05,2]
[421084111,1777005033344,-500.0,8.394e-05,2]
[421084112,1777005033355,-173.372276,8.395e-05,2]
[421084113,1777005033365,-173.372276,8.395e-05,2]
[421084114,1777005033375,-173.372276,8.395e-05,2]
[421084115,1777005033384,-173.372276,8.395e-05,2]
[421084116,1777005033393,-151.0,8.395e-05,2]
[421084117,1777005033402,-151.0,8.395e-05,2]
[421084118,1777005033411,-216161.12414643,8.395e-05,2]
[421084119,1777005033425,-63432.84401208,8.395e-05,2]
[421084120,1777005033436,-81818.23123464,8.395e-05,2]
[421084121,1777005033447,-1254.41808677,8.395e-05,2]
[421084122,1777005037658,-1152.51853048,8.395e-05,2]
[421084123,1777005037831,-8242.1317896,8.395e-05,2]
[421084124,1777005037841,-150.0,8.395e-05,2]
[421084125,1777005037852,-150.0,8.395e-05,2]
[421084126,1777005037862,-150.0,8.395e-05,2]
[421084127,1777005037872,-150.0,8.428e-05,2]
[421084128,1777005037882,-150.0,8.46e-05,2]
[421084129,1777005037892,-150.0,8.473e-05,2]
[421084130,1777005037902,-500.0,8.473e-05,2]
[421084131,1777005037911,-364.44728564,8.473e-05,2]
[421084132,1777005037920,-313.1482136,8.473e-05,2]
[421084133,1777005037930,-166.43223219,8.473e-05,2]
[421084134,1777005037940,-168.02328292,8.473e-05,2]
[421084135,1777005037950,-500.0,8.473e-05,2]
[421084136,1777005037960,-500.0,8.473e-05,2]
[421084137,1777005037970,-500.0,8.473e-05,2]
[421084138,1777005037980,-500.0,8.473e-05,2]
[421084139,1777005037990,-151.0,8.489e-05,2]
[421084140,1777005038000,-3338.39,8.489e-05,2]
[421084141,1777005038010,-150.99,8.489e-05,2]
[421084142,1777005038021,-9999.99,8.489e-05,2]
[421084143,1777005038031,-9999.99,8.489e-05,2]
[421084144,1777005038040,-1623.74,8.489e-05,2]
[421084145,1777005038050,-4502.87,8.489e-05,2]
[421084146,1777005038060,-299.99,8.489e-05,2]
[421084147,1777005038070,-150.0,8.492e-05,2]
[421084148,1777005038081,-151.0,8.492e-05,2]
[421084149,1777005038090,-151.0,8.492e-05,2]
[421084150,1777005038100,-10587.56543787,8.495e-05,2]
[421084151,1777005038114,-14860.68728384,8.495e-05,2]
[421084158,1777005040373,-57950.42553359,8.495e-05,2]
[421084159,1777005040383,-1548.2247098,8.495e-05,2]
[421084160,1777005040392,-3316.4134245,8.495e-05,2]
[421084161,1777005040401,-25429.2736593,8.495e-05,2]
[421084162,1777005040410,-427.389056,8.495e-05,2]
[421084163,1777005040419,-427.389056,8.495e-05,2]
[421084164,1777005040428,-427.389056,8.495e-05,2]
[421084165,1777005040437,-427.389056,8.495e-05,2]
[421084166,1777005040448,-1023.239153,8.495e-05,2]
[421084167,1777005040457,-1023.239153,8.495e-05,2]
[421084168,1777005040467,-1023.239153,8.495e-05,2]
[421084169,1777005040476,-1023.239153,8.495e-05,2]
[421084170,1777005040485,-173.372276,8.495e-05,2]
[421084171,1777005040494,-173.372276,8.495e-05,2]
[421084172,1777005040503,-173.372276,8.495e-05,2]
[421084173,1777005040512,-173.372276,8.495e-05,2]
[421084174,1777005040521,-158.0,8.495e-05,3]
[421084175,1777005040530,-151.0,8.495e-05,2]
[421084176,1777005040539,-151.0,8.495e-05,2]
[421084177,1777005040548,-242.2231912,8.5e-05,2]
[421084178,1777005040557,-199.40061734,8.508e-05,2]
[421084179,1777005040567,-388.03812921,8.508e-05,2]
[421084180,1777005040576,-150.0,8.511e-05,2]
[421084181,1777005040585,-150.0,8.524e-05,2]
[421084182,1777005040594,-3169.831321,8.525e-05,2]
[421084183,1777005040603,-669.4724986,8.525e-05,2]
[421084184,1777005040612,-165.6738349,8.525e-05,2]
[421084185,1777005040621,-160.0,8.526e-05,2]
[421084186,1777005040631,-2199.102563,8.526e-05,2]
[421084187,1777005040640,-4238.205127,8.526e-05,2]
[421084189,1777005040922,-160.0,8.526e-05,2]
[421084190,1777005040932,-677.727843,8.526e-05,2]
[421084191,1777005040941,-1195.455686,8.526e-05,2]
[421084192,1777005040950,-160.0,8.526e-05,2]
[421084193,1777005040959,-2170.633169,8.526e-05,2]
[421084194,1777005040969,-4181.266338,8.526e-05,2]
[421084195,1777005040979,-160.0,8.526e-05,2]
[421084196,1777005040989,-2638.8514,8.526e-05,2]
[421084197,1777005040999,-5117.7028,8.526e-05,2]
[421084198,1777005041008,-160.0,8.526e-05,2]
[421084199,1777005041017,-1367.962984,8.526e-05,2]
[421084200,1777005041026,-2575.925968,8.526e-05,2]
[421084201,1777005041035,-151.0,8.526e-05,2]
[421084202,1777005041045,-151.0,8.526e-05,2]
[421084203,1777005041054,-160.0,8.526e-05,2]
[421084204,1777005041063,-890.285558,8.526e-05,2]
[421084205,1777005041072,-1620.571116,8.526e-05,2]
[421084206,1777005041081,-150.0,8.556e-05,2]
[421084207,1777005041090,-151.0,8.556e-05,2]
[421084208,1777005041100,-637.12,8.556e-05,2]
[421084209,1777005041110,-183.4,8.556e-05,2]
[421084210,1777005041120,-570.44,8.556e-05,2]
[421084211,1777005041130,-638.38,8.556e-05,2]
[421084212,1777005041139,-478.0,8.556e-05,2]
[421084213,1777005041149,-477.31,8.556e-05,2]
[421084214,1777005041158,-173.372276,8.562e-05,2]
[421084215,1777005041167,-173.372276,8.562e-05,2]
[421084216,1777005041176,-173.372276,8.562e-05,2]
[421084217,1777005041187,-173.372276,8.562e-05,2]
[421084218,1777005041197,-572.75,8.562e-05,2]
[421084219,1777005041206,-638.38,8.562e-05,2]
[421084220,1777005041215,-183.4,8.562e-05,2]
[421084221,1777005041224,-151.0,8.562e-05,2]
[421084222,1777005041233,-570.44,8.562e-05,2]
[421084223,1777005041242,-568.19,8.562e-05,2]
[421084224,1777005041252,-478.0,8.562e-05,2]
[421084225,1777005041262,-638.38,8.562e-05,2]
[421084226,1777005041271,-568.19,8.562e-05,2]
[421084227,1777005041280,-478.0,8.562e-05,2]
[421084228,1777005041289,-183.4,8.562e-05,2]
[421084229,1777005041299,-568.22,8.564e-05,2]
[421084230,1777005041308,-638.43,8.564e-05,2]
[421084231,1777005041317,-638.38,8.564e-05,2]
[421084232,1777005041326,-183.98,8.564e-05,2]
[421084233,1777005041335,-570.44,8.564e-05,2]
[421084234,1777005041344,-183.4,8.564e-05,2]
[421084235,1777005041353,-427.389056,8.564e-05,2]
[421084236,1777005041362,-427.389056,8.564e-05,2]
[421084237,1777005041372,-427.389056,8.564e-05,2]
[421084238,1777005041381,-427.389056,8.564e-05,2]
[421084239,1777005041390,-1023.239153,8.564e-05,2]
[421084240,1777005041399,-1023.239153,8.564e-05,2]
[421084241,1777005041408,-1023.239153,8.564e-05,2]
[421084242,1777005041417,-1023.239153,8.564e-05,2]
[421084243,1777005041426,-151.0,8.564e-05,2]
[421084244,1777005041436,-568.19,8.564e-05,2]
[421084245,1777005041445,-151.0,8.564e-05,2]
[421084246,1777005041454,-638.38,8.564e-05,2]
[421084247,1777005041464,-570.37,8.564e-05,2]
[421084248,1777005041473,-151.0,8.565e-05,2]
[421084249,1777005041482,-286.239698,8.565e-05,2]
[421084250,1777005041491,-15243.5659,8.565e-05,2]
[421084251,1777005041500,-153.60113076,8.582e-05,2]
[421084252,1777005041509,-151.0,8.585e-05,2]
[421084253,1777005041518,-151.0,8.585e-05,2]
[421084254,1777005041527,-13154.57876207,8.586e-05,2]
[421084255,1777005041536,-150.0,8.588e-05,2]
[421084256,1777005041545,-173.372276,8.596e-05,2]
[421084257,1777005041554,-173.372276,8.596e-05,2]
[421084258,1777005041563,-173.372276,8.596e-05,2]
[421084259,1777005041573,-173.372276,8.596e-05,2]
[421084260,1777005041582,-2500.0,8.597e-05,2]
[421084261,1777005041591,-2500.0,8.597e-05,2]
[421084262,1777005041600,-2500.0,8.597e-05,2]
[421084263,1777005041609,-2500.0,8.597e-05,2]
[421084264,1777005041618,-2500.0,8.597e-05,2]
[421084265,1777005041627,-191.98953898,8.597e-05,2]
[421084266,1777005041636,-1680.0,8.597e-05,2]
[421084267,1777005041645,-151.0,8.6e-05,2]
[421084268,1777005041654,-151.0,8.6e-05,2]
[421084269,1777005041663,-151.0,8.6e-05,2]
[421084270,1777005041672,-500.0,8.6e-05,2]
[421084271,1777005041682,-440.5422189,8.6e-05,2]
[421084272,1777005041691,-150.0,8.621e-05,2]
[421084273,1777005041699,-150.0,8.653e-05,2]
[421084274,1777005041708,-202.04,8.656e-05,2]
[421084275,1777005041718,-250.0,8.658e-05,2]
[421084276,1777005041727,-250.0,8.658e-05,2]
[421084277,1777005041735,-266.28,8.658e-05,2]
[421084278,1777005041745,-215.99294237,8.662e-05,2]
[421084279,1777005041754,-3033.948,8.665e-05,2]
[421084280,1777005041763,-225.628,8.665e-05,2]
[421084281,1777005041772,-427.389056,8.665e-05,2]
[421084282,1777005041781,-427.389056,8.665e-05,2]
[421084283,1777005041790,-427.389056,8.665e-05,2]
[421084284,1777005041800,-427.389056,8.665e-05,2]
[421084285,1777005041809,-1023.239153,8.665e-05,2]
[421084286,1777005041819,-1023.239153,8.665e-05,2]
[421084287,1777005041828,-1023.239153,8.665e-05,2]
[421084288,1777005041837,-1023.239153,8.665e-05,2]
[421084289,1777005041846,-151.0,8.665e-05,2]
[421084290,1777005041856,-500.0,8.668e-05,2]
[421084291,1777005041865,-844.53,8.668e-05,2]
[421084292,1777005041875,-13726.48581089,8.68e-05,2]
[421084293,1777005041884,-151.0,8.681e-05,2]
[421084294,1777005041893,-150.0,8.685e-05,2]
[421084295,1777005041903,-150.0,8.685e-05,2]
[421084296,1777005041912,-150.00000001,8.685e-05,2]
[421084297,1777005041921,-150.0,8.685e-05,2]
[421084298,1777005041930,-150.0,8.685e-05,2]
[421084299,1777005041939,-150.0,8.685e-05,2]
[421084300,1777005041949,-150.0,8.685e-05,2]
[421084301,1777005041958,-183.92202286,8.685e-05,2]
[421084302,1777005041967,-1266.0,8.699e-05,2]
[421084303,1777005041977,-1223.592,8.699e-05,2]
[421084304,1777005041986,-932.142,8.699e-05,2]
[421084305,1777005041996,-1349.0,8.699e-05,2]
[421084306,1777005042005,-6032.0,8.699e-05,2]
[421084307,1777005042014,-155.326,8.699e-05,2]
[421084308,1777005042023,-151.0,8.699e-05,2]
[421084309,1777005042032,-188.126385,8.699e-05,2]
[421084310,1777005042041,-173.372276,8.699e-05,2]
[421084311,1777005042050,-173.372276,8.699e-05,2]
[421084312,1777005042060,-173.372276,8.699e-05,2]
[421084313,1777005042069,-173.372268,8.699e-05,2]
[421084314,1777005042078,-461.0,8.7e-05,5]
[421084315,1777005042088,-452.0,8.7e-05,5]
[421084316,1777005042099,-250.0,8.7e-05,2]
[421084317,1777005042108,-644296.19255014,8.7e-05,2]
[421084318,1777005042118,-401.42278526,8.7e-05,2]
[421084319,1777005042126,-115984.4705932,8.7e-05,2]
[421084320,1777005042135,-172.643148,8.7e-05,2]
[421084321,1777005042145,-151.0,8.7e-05,2]
[421084322,1777005042154,-151.0,8.7e-05,2]
[421084323,1777005042163,-427.389056,8.7e-05,2]
[421084324,1777005042173,-427.389056,8.7e-05,2]
[421084325,1777005042182,-427.389056,8.7e-05,2]
[421084326,1777005042192,-427.389056,8.7e-05,2]
[421084327,1777005042201,-427.389056,8.7e-05,2]
[421084328,1777005042212,-427.389056,8.7e-05,2]
[421084329,1777005042223,-427.389056,8.7e-05,2]
[421084330,1777005042233,-427.389062,8.7e-05,2]
[421084331,1777005042242,-1023.239153,8.7e-05,2]
[421084332,1777005042252,-1023.239153,8.7e-05,2]
[421084333,1777005042262,-1023.239153,8.7e-05,2]
[421084334,1777005042272,-1023.239153,8.7e-05,2]
[421084335,1777005042282,-1023.239153,8.7e-05,2]
[421084336,1777005042292,-1023.239153,8.7e-05,2]
[421084337,1777005042302,-1023.239153,8.7e-05,2]
[421084338,1777005042311,-1023.239152,8.7e-05,2]
[421084339,1777005042321,-250.0,8.712e-05,2]
[421084340,1777005042330,-250.0,8.809e-05,2]
[421084341,1777005042340,-2400.0,8.9e-05,3]
[421084342,1777005042349,-200.0,8.938e-05,2]
[421084343,1777005042359,-1481.23780761,8.938e-05,2]
[421084345,1777005042369,-756.2157356,8.938e-05,2]
[421084346,1777005042378,-156.587,8.938e-05,2]
[421084347,1777005042388,-181.08010149,8.938e-05,2]
[421084348,1777005042397,-290.26104003,8.938e-05,2]
[421084349,1777005042407,-217.15233878,8.938e-05,2]
[421084350,1777005042416,-500.0,8.942e-05,2]
[421084351,1777005042426,-844.53,8.942e-05,2]
[421084353,1777005042435,-2998.776223,8.952e-05,2]
[421084355,1777005042444,-1386.261497,8.952e-05,2]
[421084356,1777005042454,-2959.954321,8.952e-05,2]
[421084358,1777005042463,-3598.433727,8.952e-05,2]
[421084360,1777005042472,-1865.404069,8.952e-05,2]
[421084362,1777005042481,-566.0,9e-05,5]
[421084364,1777005042491,-5011.85208719,9e-05,2]
[421084366,1777005042500,-178.7843641,9e-05,2]
[421084367,1777005042510,-4800.0,9e-05,3]
[421084368,1777005042519,-307.0,9e-05,2]
[421084369,1777005042528,-219.21764669,9.021e-05,2]
[421084370,1777005042538,-1008.07670405,9.021e-05,2]
[421084371,1777005042547,-1000.0,9.021e-05,2]
[421084372,1777005042556,-1000.0,9.021e-05,2]
[421084373,1777005042565,-1000.0,9.021e-05,2]
[421084374,1777005042575,-1000.0,9.021e-05,2]
[421084375,1777005042584,-157.25498564,9.04e-05,2]
[421084376,1777005042593,-2125.03758976,9.119e-05,2]
[421084377,1777005042602,-255.0,9.123e-05,2]
[421084378,1777005042611,-630.58670586,9.216e-05,2]
[421084379,1777005042621,-844.53,9.216e-05,2]
[421084380,1777005042631,-570.44,9.378e-05,2]
[421084381,1777005042640,-568.19,9.384e-05,2]
[421084382,1777005042649,-570.47,9.384e-05,2]
[421084383,1777005042658,-570.44,9.384e-05,2]
[421084384,1777005042668,-183.15,9.384e-05,2]
[421084385,1777005042677,-477.94,9.384e-05,2]
[421084386,1777005042687,-183.4,9.385e-05,2]
[421084387,1777005042696,-638.38,9.385e-05,2]
[421084388,1777005042705,-568.19,9.385e-05,2]
[421084389,1777005042714,-478.05,9.385e-05,2]
[421084390,1777005042723,-183.43,9.385e-05,2]
[421084391,1777005042732,-478.0,9.385e-05,2]
[421084392,1777005042742,-569.95,9.385e-05,2]
[421084393,1777005042751,-478.0,9.385e-05,2]
[421084394,1777005042760,-570.44,9.385e-05,2]
[421084395,1777005042769,-638.38,9.386e-05,2]
[421084396,1777005042778,-478.0,9.386e-05,2]
[421084397,1777005042787,-570.44,9.386e-05,2]
[421084398,1777005042797,-568.19,9.386e-05,2]
[421084399,1777005042807,-570.44,9.386e-05,2]
[421084400,1777005042816,-478.0,9.386e-05,2]
[421084401,1777005042825,-571.84,9.386e-05,2]
[421084402,1777005042835,-1000.0,9.4e-05,2]
[421084403,1777005042844,-313.0,9.4e-05,2]
[421084404,1777005042853,-2351.0,9.457e-05,2]
[421084405,1777005042863,-206.06707851,9.486e-05,2]
[421084406,1777005042872,-1536.04360649,9.486e-05,2]
[421084407,1777005042881,-162.380719,9.486e-05,2]
[421084408,1777005042891,-187.78006525,9.486e-05,2]
[421084409,1777005042899,-439.06794592,9.486e-05,2]
[421084410,1777005042908,-225.18697532,9.486e-05,2]
[421084411,1777005042918,-844.53,9.49e-05,2]
[421084412,1777005042927,-161.0,9.5e-05,2]
[421084413,1777005042936,-161.0,9.5e-05,2]
[421084414,1777005042945,-161.0,9.5e-05,2]
[421084415,1777005042954,-350.0,9.511e-05,3]
[421084416,1777005042964,-350.0,9.548e-05,2]
[421084417,1777005042973,-1500.0,9.568e-05,2]
[421084418,1777005042983,-1500.0,9.568e-05,2]
[421084419,1777005042992,-1500.0,9.568e-05,2]
[421084420,1777005043001,-1500.0,9.568e-05,2]
[421084421,1777005043011,-25344.8368399,9.583e-05,2]
[421084422,1777005043021,-5674.037904,9.583e-05,2]
[421084423,1777005043030,-403.09898699,9.63e-05,4]
[421084424,1777005043039,-697.55,9.7e-05,2]
[421084425,1777005043048,-697.55,9.7e-05,2]
[421084426,1777005043058,-697.55,9.7e-05,2]
[421084427,1777005043068,-151.0,9.759e-05,2]
[421084428,1777005043078,-844.53,9.764e-05,2]
[421084429,1777005043087,-231.12,9.8e-05,2]
[421084430,1777005043096,-1039.575757,9.805e-05,2]
[421084431,1777005043106,-480.570652,9.805e-05,2]
[421084432,1777005043114,-1026.117498,9.805e-05,2]
[421084433,1777005043123,-1871.185538,9.805e-05,2]
[421084434,1777005043133,-970.010115,9.805e-05,2]
[421084435,1777005043142,-5655.197503,9.826e-05,2]
[421084436,1777005043151,-165.1145019,9.826e-05,2]
[421084438,1777005043161,-1266.0489862,9.826e-05,2]
[421084439,1777005043170,-157.8166086,9.849e-05,2]
[421084440,1777005043179,-267.794186,9.893e-05,2]
[421084441,1777005043188,-162.24500663,9.913e-05,2]
[421084442,1777005043198,-160.0,9.913e-05,2]
[421084443,1777005043207,-250.0,9.975e-05,2]
[421084444,1777005043217,-224.07,9.998e-05,2]
[421084445,1777005043226,-1635.04068115,0.0001,2]
[421084446,1777005043235,-151.83496578,0.0001,2]
[421084447,1777005043244,-828.99838717,0.0001,2]
[421084448,1777005043254,-1000.0,0.0001,2]
[421084449,1777005043274,-1000.0,0.0001,2]
[421084450,1777005043283,-1000.0,0.0001,2]
[421084451,1777005043292,-1000.0,0.0001,2]
[421084452,1777005043302,-1000.0,0.0001,2]
[421084453,1777005043311,-1000.0,0.0001,2]
[421084454,1777005043321,-1000.0,0.0001,2]
[421084455,1777005043330,-1000.0,0.0001,2]
[421084456,1777005043339,-1000.0,0.0001,2]
[421084457,1777005043349,-1000.0,0.0001,2]
[421084458,1777005043358,-1000.0,0.0001,2]
[421084459,1777005043367,-1000.0,0.0001,2]
[421084460,1777005043377,-1000.0,0.0001,2]
[421084461,1777005043386,-1000.0,0.0001,2]
[421084462,1777005043396,-960.05887093,0.0001,2]
[421084463,1777005043408,-151.0,0.0001,2]
[421084464,1777005043417,-1340.86293455,0.0001,2]